fUSD/lending_fUSD_20241024
["ID","MTS","AMOUNT","RATE_DAILY","PERIOD"]
[340733824,1729749050228,-624.11,0.00057534,120]
[340733825,1729749050238,-624.11,0.00057534,120]
[340733826,1729749050247,-502.49111005,0.00057534,120]
[340733827,1729749050257,-500.0,0.00057534,120]
[340733828,1729749050267,-546.34997197,0.00057534,120]
[340733829,1729749050276,-500.0,0.00057534,120]
[340733830,1729749050285,-500.0,0.00057534,120]
[340733831,1729749050295,-500.0,0.00057534,120]
[340733832,1729749050304,-503.63112574,0.00057534,120]
[340733833,1729749050315,-520.71878549,0.00057534,120]
[340733834,1729749050324,-500.0,0.00057534,120]
[340733835,1729749050333,-500.0,0.00057534,120]
[340733836,1729749050342,-500.0,0.00057534,120]
[340733837,1729749050351,-500.0,0.00057534,120]
[340733838,1729749050361,-500.0,0.00057534,120]
[340733839,1729749050380,-500.0,0.00057534,120]
[340733840,1729749050391,-508.00670141,0.00057534,120]
[340733841,1729749050400,-500.0,0.00057534,120]
[340733842,1729749050410,-309.53740753,0.00057534,120]
[340733843,1729749050419,-507.95051904,0.00057534,120]
[340733844,1729749050428,-516.32091067,0.00057534,120]
[340733845,1729749050439,-502.56496067,0.00057534,120]
[340733846,1729749050448,-511.93988222,0.00057534,120]
[340733847,1729749050459,-504.30953919,0.00057534,120]
[340733848,1729749050470,-579.68564094,0.00057534,120]
[340733849,1729749050479,-519.62706531,0.00057534,120]
[340733850,1729749050489,-525.26047037,0.00057534,120]
[340733851,1729749050499,-500.08664934,0.00057534,120]
[340733852,1729749050508,-576.88054271,0.00057534,120]
[340733853,1729749050518,-500.0,0.00057534,120]
[340733854,1729749050527,-500.0,0.00057534,120]
[340733855,1729749050537,-550.07,0.00057534,120]
[340733856,1729749050546,-412.91367516,0.00057534,120]
[340733857,1729749050556,-502.58951785,0.00057534,120]
[340733858,1729749050565,-503.38508455,0.00057534,120]
[340733859,1729749050575,-500.0,0.00057534,120]
[340733860,1729749050584,-514.36728042,0.00057534,120]
[340733861,1729749050593,-503.11299063,0.00057534,120]
[340733862,1729749050603,-500.0,0.00057534,120]
[340733863,1729749050612,-500.0,0.00057534,120]
[340733864,1729749050621,-500.0,0.00057534,120]
[340733865,1729749050631,-390.70525276,0.00057534,120]
[340733866,1729749050641,-499.39754081,0.00057534,120]
[340733867,1729749050650,-503.09470859,0.00057534,120]
[340733868,1729749050659,-500.0,0.00057534,120]
[340733869,1729749050669,-500.0,0.00057534,120]
[340733870,1729749050678,-503.93607906,0.00057534,120]
[340733871,1729749050687,-394.57627449,0.00057534,120]
[340733872,1729749050696,-432.52796635,0.00057534,120]
[340733873,1729749050705,-500.0,0.00057534,120]
[340733874,1729749050716,-500.0,0.00057534,120]
[340733875,1729749050725,-500.0,0.00057534,120]
[340733876,1729749050735,-500.0,0.00057534,120]
[340733877,1729749050744,-500.0,0.00057534,120]
[340733878,1729749050753,-500.0,0.00057534,120]
[340733879,1729749050762,-500.0,0.00057534,120]
[340733880,1729749050771,-500.0,0.00057534,120]
[340733881,1729749050780,-500.0,0.00057534,120]
[340733882,1729749050789,-500.0,0.00057534,120]
[340733883,1729749050798,-500.0,0.00057534,120]
[340733884,1729749050807,-500.0,0.00057534,120]
[340733885,1729749050817,-500.0,0.00057534,120]
[340733886,1729749050826,-500.0,0.00057534,120]
[340733887,1729749050835,-500.0,0.00057534,120]
[340733888,1729749050848,-500.0,0.00057534,120]
[340733889,1729749050857,-227.51448464,0.00057534,120]
[340733890,1729749050866,-1000.13369879,0.00057534,120]
[340733891,1729749050875,-503.07294571,0.00057534,120]
[340733892,1729749050885,-503.84711901,0.00057534,120]
[340733893,1729749050895,-500.0,0.00057534,14]
[340733894,1729749050904,-500.0,0.00057534,14]
[340733895,1729749050913,-500.0,0.00057534,14]
[340733896,1729749050924,-500.0,0.00057534,120]
[340733897,1729749050934,-500.0,0.00057534,120]
[340733898,1729749050943,-500.0,0.00057534,120]
[340733899,1729749050952,-500.0,0.00057534,120]
[340733900,1729749050962,-504.73940599,0.00057534,120]
[340733901,1729749050971,-500.0,0.00057534,120]
[340733902,1729749050980,-500.0,0.00057534,120]
[340733903,1729749050989,-500.0,0.00057534,120]
[340733904,1729749050998,-500.0,0.00057534,120]
[340733905,1729749051007,-500.0,0.00057534,120]
[340733906,1729749051017,-500.0,0.00057534,120]
[340733907,1729749051026,-500.0,0.00057534,120]
[340733908,1729749051036,-500.0,0.00057534,120]
[340733909,1729749051045,-719.38,0.00057534,120]
[340733910,1729749051055,-719.38,0.00057534,120]
[340733911,1729749051064,-719.38,0.00057534,120]
[340733912,1729749051073,-719.38,0.00057534,120]
[340733913,1729749051083,-719.38,0.00057534,120]
[340733914,1729749051093,-494.50635183,0.00057534,120]
[340733915,1729749051103,-571.97,0.00057534,120]
[340733916,1729749051112,-571.97,0.00057534,120]
[340733917,1729749051121,-571.97,0.00057534,120]
[340733918,1729749051131,-571.97,0.00057534,120]
[340733919,1729749051140,-571.97,0.00057534,120]
[340733920,1729749051149,-571.97,0.00057534,120]
[340733921,1729749051158,-571.97,0.00057534,120]
[340733922,1729749051168,-1043.89,0.00057534,120]
[340733923,1729749051177,-518.01033798,0.00057534,120]
[340733924,1729749051186,-1043.89,0.00057534,120]
[340733925,1729749051195,-1043.89,0.00057534,120]
[340733926,1729749051204,-501.23373386,0.00057534,120]
[340733927,1729749051214,-1043.89,0.00057534,120]
[340733928,1729749051223,-1043.89,0.00057534,120]
[340733929,1729749051232,-1043.89,0.00057534,120]
[340733930,1729749051241,-1043.89,0.00057534,120]
[340733931,1729749051251,-320.88889936,0.00057534,120]
[340733932,1729749051260,-500.0,0.00057534,120]
[340733933,1729749051269,-560.55,0.00057534,120]
[340733934,1729749051279,-503.49354177,0.00057534,120]
[340733935,1729749051287,-500.0,0.00057534,120]
[340733936,1729749051297,-500.0,0.00057534,120]
[340733937,1729749051308,-500.0,0.00057534,120]
[340733938,1729749051320,-500.0,0.00057534,120]
[340733939,1729749051329,-500.0,0.00057534,120]
[340733940,1729749051339,-500.0,0.00057534,120]
[340733941,1729749051348,-500.0,0.00057534,120]
[340733942,1729749051358,-500.0,0.00057534,120]
[340733943,1729749051367,-500.0,0.00057534,120]
[340733944,1729749051476,-500.0,0.00057534,120]
[340733945,1729749051486,-325.28731863,0.00057534,120]
[340733946,1729749051495,-500.0,0.00057534,120]
[340733947,1729749051504,-500.0,0.00057534,120]
[340733948,1729749051513,-500.0,0.00057534,120]
[340733949,1729749051522,-510.40449915,0.00057534,120]
[340733950,1729749051531,-500.0,0.00057534,120]
[340733951,1729749051541,-502.99476944,0.00057534,120]
[340733952,1729749051551,-500.0,0.00057534,120]
[340733953,1729749051560,-500.0,0.00057534,120]
[340733954,1729749051569,-152.63643158,0.00057534,120]
[340733955,1729749051578,-552.95454666,0.00057534,120]
[340733956,1729749051587,-1796.36,0.00057534,120]
[340733957,1729749051597,-1796.36,0.00057534,120]
[340733958,1729749051606,-1796.36,0.00057534,120]
[340733959,1729749051615,-1796.36,0.00057534,120]
[340733960,1729749051625,-500.0,0.00057534,120]
[340733961,1729749051634,-1796.36,0.00057534,120]
[340733962,1729749051643,-500.0,0.00057534,120]
[340733963,1729749051652,-500.0,0.00057534,120]
[340733964,1729749051661,-1796.36,0.00057534,120]
[340733965,1729749051670,-500.0,0.00057534,120]
[340733966,1729749051679,-500.0,0.00057534,120]
[340733967,1729749051688,-500.0,0.00057534,120]
[340733968,1729749051697,-500.0,0.00057534,120]
[340733969,1729749051705,-500.0,0.00057534,120]
[340733970,1729749051715,-500.0,0.00057534,120]
[340733971,1729749051725,-500.0,0.00057534,120]
[340733972,1729749051734,-511.21581836,0.00057534,120]
[340733973,1729749051743,-500.0,0.00057534,120]
[340733974,1729749051752,-500.0,0.00057534,120]
[340733975,1729749051761,-500.0,0.00057534,120]
[340733976,1729749051770,-1749.13,0.00057534,120]
[340733977,1729749051779,-1749.13,0.00057534,120]
[340733978,1729749051788,-1749.13,0.00057534,120]
[340733979,1729749051797,-1749.13,0.00057534,120]
[340733980,1729749051806,-1749.13,0.00057534,120]
[340733981,1729749051815,-1749.13,0.00057534,120]
[340733982,1729749051824,-1749.13,0.00057534,120]
[340733983,1729749051833,-1749.13,0.00057534,120]
[340733984,1729749051842,-500.0,0.00057534,120]
[340733985,1729749051854,-555.27994702,0.00057534,120]
[340733986,1729749051863,-500.0,0.00057534,120]
[340733987,1729749051872,-500.0,0.00057534,120]
[340733988,1729749051881,-500.0,0.00057534,120]
[340733989,1729749051890,-500.0,0.00057534,120]
[340733990,1729749051899,-500.0,0.00057534,120]
[340733991,1729749051909,-500.0,0.00057534,120]
[340733992,1729749051918,-500.0,0.00057534,120]
[340733993,1729749051928,-500.0,0.00057534,120]
[340733994,1729749051938,-503.79204557,0.00057534,120]
[340733995,1729749051947,-512.63,0.00057534,120]
[340733996,1729749051957,-500.0,0.00057534,120]
[340733997,1729749051967,-500.0,0.00057534,120]
[340733998,1729749051976,-500.0,0.00057534,120]
[340733999,1729749051986,-284.50511235,0.00057534,120]
[340734000,1729749051995,-500.0,0.00057534,120]
[340734001,1729749052006,-341.17214059,0.00057534,120]
[340734002,1729749052016,-599.85906677,0.00057534,120]
[340734003,1729749052026,-503.76332123,0.00057534,120]
[340734004,1729749052035,-500.0,0.00057534,21]
[340734005,1729749052046,-500.0,0.00057534,21]
[340734006,1729749052055,-1786.86,0.00057534,120]
[340734007,1729749052066,-500.0,0.00057534,21]
[340734008,1729749052076,-1786.86,0.00057534,120]
[340734009,1729749052086,-500.0,0.00057534,21]
[340734010,1729749052098,-1786.86,0.00057534,120]
[340734011,1729749052108,-1786.86,0.00057534,120]
[340734012,1729749052120,-500.0,0.00057534,21]
[340734013,1729749052132,-1786.86,0.00057534,120]
[340734014,1729749052142,-500.0,0.00057534,21]
[340734015,1729749052153,-1786.86,0.00057534,120]
[340734016,1729749052164,-500.0,0.00057534,21]
[340734017,1729749052174,-1786.86,0.00057534,120]
[340734018,1729749052183,-422.0901889,0.00057534,21]
[340734019,1729749052192,-1786.86,0.00057534,120]
[340734020,1729749052203,-1786.86,0.00057534,120]
[340734021,1729749052214,-503.9112649,0.00057534,120]
[340734022,1729749052227,-223.038036,0.00057534,120]
[340734023,1729749052236,-502.39526213,0.00057534,120]
[340734024,1729749052245,-2266.0,0.00057534,120]
[340734025,1729749052254,-500.0,0.00057534,120]
[340734026,1729749052264,-500.0,0.00057534,120]
[340734027,1729749052273,-500.0,0.00057534,120]
[340734028,1729749052282,-500.0,0.00057534,120]
[340734029,1729749052291,-500.0,0.00057534,120]
[340734030,1729749052300,-500.0,0.00057534,120]
[340734031,1729749052310,-500.0,0.00057534,120]
[340734032,1729749052319,-500.0,0.00057534,120]
[340734033,1729749052328,-500.0,0.00057534,120]
[340734034,1729749052337,-407.94867457,0.00057534,120]
[340734035,1729749052347,-500.0,0.00057534,120]
[340734036,1729749052356,-500.0,0.00057534,120]
[340734037,1729749052365,-500.0,0.00057534,120]
[340734038,1729749052375,-500.0,0.00057534,120]
[340734039,1729749052384,-500.0,0.00057534,120]
[340734040,1729749052393,-500.0,0.00057534,120]
[340734041,1729749052403,-500.0,0.00057534,120]
[340734042,1729749052412,-173.67819077,0.00057534,120]
[340734043,1729749052421,-500.0,0.00057534,120]
[340734044,1729749052431,-500.0,0.00057534,120]
[340734045,1729749052440,-395.40215697,0.00057534,120]
[340734046,1729749052450,-500.0,0.00057534,120]
[340734047,1729749052461,-500.0,0.00057534,120]
[340734048,1729749052470,-500.0,0.00057534,120]
[340734049,1729749052480,-500.0,0.00057534,120]
[340734050,1729749052489,-500.0,0.00057534,120]
[340734051,1729749052498,-500.0,0.00057534,120]
[340734052,1729749052508,-500.0,0.00057534,120]
[340734053,1729749052519,-406.45766224,0.00057534,120]
[340734054,1729749052530,-500.0,0.00057534,120]
[340734055,1729749052540,-500.0,0.00057534,120]
[340734056,1729749052550,-500.0,0.00057534,120]
[340734057,1729749052560,-500.0,0.00057534,120]
[340734058,1729749052569,-500.0,0.00057534,120]
[340734059,1729749052580,-500.0,0.00057534,120]
[340734060,1729749052589,-500.0,0.00057534,120]
[340734061,1729749052599,-500.0,0.00057534,120]
[340734062,1729749052608,-500.0,0.00057534,120]
[340734063,1729749052617,-500.0,0.00057534,120]
[340734064,1729749052626,-500.0,0.00057534,120]
[340734065,1729749052635,-297.29545426,0.00057534,120]
[340734066,1729749052644,-762.0,0.00057534,120]
[340734067,1729749052654,-762.0,0.00057534,120]
[340734068,1729749052664,-762.0,0.00057534,120]
[340734069,1729749052673,-762.0,0.00057534,120]
[340734070,1729749052683,-762.0,0.00057534,120]
[340734071,1729749052692,-762.0,0.00057534,120]
[340734072,1729749052702,-762.0,0.00057534,120]
[340734073,1729749052711,-762.0,0.00057534,120]
[340734074,1729749052720,-500.0,0.00057534,120]
[340734075,1729749052729,-500.0,0.00057534,120]
[340734076,1729749052739,-500.0,0.00057534,120]
[340734077,1729749052748,-500.0,0.00057534,120]
[340734078,1729749052757,-500.0,0.00057534,120]
[340734079,1729749052766,-500.0,0.00057534,120]
[340734080,1729749052775,-500.0,0.00057534,120]
[340734081,1729749052786,-500.0,0.00057534,120]
[340734082,1729749052796,-500.0,0.00057534,120]
[340734083,1729749052807,-500.0,0.00057534,120]
[340734084,1729749052818,-500.0,0.00057534,120]
[340734085,1729749052828,-500.0,0.00057534,120]
[340734086,1729749052838,-500.0,0.00057534,120]
[340734087,1729749052852,-500.0,0.00057534,120]
[340734088,1729749052863,-607.81297691,0.00057534,120]
[340734089,1729749052872,-353.08,0.00057534,120]
[340734090,1729749052881,-504.52704445,0.00057534,120]
[340734091,1729749052892,-500.0,0.00057534,120]
[340734092,1729749052903,-500.0,0.00057534,120]
[340734093,1729749052913,-505.01028015,0.00057534,120]
[340734094,1729749052924,-292.16211,0.00057534,120]
[340734095,1729749052934,-292.16211,0.00057534,120]
[340734096,1729749052943,-292.16211,0.00057534,120]
[340734097,1729749052953,-292.16211,0.00057534,120]
[340734098,1729749052962,-151.0,0.00057534,120]
[340734099,1729749052971,-151.0,0.00057534,120]
[340734100,1729749052981,-151.0,0.00057534,120]
[340734101,1729749052990,-151.0,0.00057534,120]
[340734102,1729749053000,-292.16211,0.00057534,120]
[340734103,1729749053011,-292.16211,0.00057534,120]
[340734104,1729749053021,-500.0,0.00057534,120]
[340734105,1729749053031,-292.16211,0.00057534,120]
[340734106,1729749053041,-292.16211,0.00057534,120]
[340734107,1729749053050,-505.09041513,0.00057534,120]
[340734108,1729749053059,-500.0,0.00057534,120]
[340734109,1729749053070,-500.0,0.00057534,120]
[340734110,1729749053080,-500.0,0.00057534,120]
[340734111,1729749053090,-500.0,0.00057534,120]
[340734112,1729749053099,-500.0,0.00057534,120]
[340734113,1729749053109,-500.0,0.00057534,120]
[340734114,1729749053120,-500.0,0.00057534,120]
[340734115,1729749053128,-502.3574311,0.00057534,120]
[340734116,1729749053139,-500.0,0.00057534,120]
[340734117,1729749053150,-500.0,0.00057534,120]
[340734118,1729749053160,-500.0,0.00057534,120]
[340734119,1729749053171,-500.0,0.00057534,120]
[340734120,1729749053181,-468.41603831,0.00057534,120]
[340734121,1729749053190,-523.72003336,0.00057534,120]
[340734122,1729749053199,-500.0,0.00057534,120]
[340734123,1729749053209,-530.3171645,0.00057534,120]
[340734124,1729749053218,-542.4083981,0.00057534,120]
[340734125,1729749053228,-506.18392337,0.00057534,120]
[340734126,1729749053239,-500.0,0.00057534,120]
[340734127,1729749053248,-539.08,0.00057534,120]
[340734128,1729749053258,-539.08,0.00057534,120]
[340734129,1729749053267,-539.08,0.00057534,120]
[340734130,1729749053277,-500.0,0.00057534,120]
[340734131,1729749053286,-539.08,0.00057534,120]
[340734132,1729749053295,-539.08,0.00057534,120]
[340734133,1729749053304,-539.08,0.00057534,120]
[340734134,1729749053313,-500.0,0.00057534,120]
[340734135,1729749053322,-539.08,0.00057534,120]
[340734136,1729749053331,-500.0,0.00057534,120]
[340734137,1729749053340,-539.08,0.00057534,120]
[340734138,1729749053349,-500.0,0.00057534,120]
[340734139,1729749053358,-539.08,0.00057534,120]
[340734140,1729749053367,-500.0,0.00057534,120]
[340734141,1729749053377,-539.08,0.00057534,120]
[340734142,1729749053386,-500.0,0.00057534,120]
[340734143,1729749053395,-500.0,0.00057534,120]
[340734144,1729749053404,-307.32857439,0.00057534,120]
[340734145,1729749053413,-500.0,0.00057534,120]
[340734146,1729749053423,-500.0,0.00057534,120]
[340734147,1729749053432,-500.0,0.00057534,120]
[340734148,1729749053441,-500.0,0.00057534,120]
[340734149,1729749053451,-500.0,0.00057534,120]
[340734150,1729749053461,-500.0,0.00057534,120]
[340734151,1729749053470,-502.46647721,0.00057534,120]
[340734152,1729749053479,-503.36472834,0.00057534,120]
[340734153,1729749053489,-508.01836083,0.00057534,120]
[340734154,1729749053498,-500.0,0.00057534,120]
[340734155,1729749053507,-500.0,0.00057534,120]
[340734156,1729749053516,-339.37934178,0.00057534,120]
[340734157,1729749053527,-541.79043007,0.00057534,120]
[340734158,1729749053536,-510.60775816,0.00057534,120]
[340734159,1729749053545,-500.0,0.00057534,120]
[340734160,1729749053554,-500.0,0.00057534,120]
[340734161,1729749053563,-500.0,0.00057534,120]
[340734162,1729749053573,-500.0,0.00057534,120]
[340734163,1729749053582,-500.0,0.00057534,120]
[340734164,1729749053593,-500.0,0.00057534,120]
[340734165,1729749053605,-583.54839871,0.00057534,120]
[340734166,1729749053615,-500.0,0.00057534,120]
[340734167,1729749053625,-248.28,0.00057534,120]
[340734168,1729749053635,-502.05199991,0.00057534,120]
[340734169,1729749053644,-503.01013313,0.00057534,120]
[340734170,1729749053654,-500.0,0.00057534,120]
[340734171,1729749053664,-500.0,0.00057534,120]
[340734172,1729749053674,-500.0,0.00057534,120]
[340734173,1729749053683,-500.0,0.00057534,120]
[340734174,1729749053692,-500.0,0.00057534,120]
[340734175,1729749053703,-500.0,0.00057534,120]
[340734176,1729749053714,-500.0,0.00057534,120]
[340734177,1729749053722,-500.0,0.00057534,120]
[340734178,1729749053731,-500.0,0.00057534,120]
[340734179,1729749053740,-619.52080646,0.00057534,120]
[340734180,1729749053749,-504.73743344,0.00057534,120]
[340734181,1729749053758,-524.26740493,0.00057534,120]
[340734182,1729749053768,-505.22852028,0.00057534,120]
[340734183,1729749053778,-507.66024618,0.00057534,120]
[340734184,1729749053790,-508.0502733,0.00057534,120]
[340734185,1729749053799,-512.89591189,0.00057534,120]
[340734186,1729749053810,-500.0,0.00057534,7]
[340734187,1729749053819,-446.92,0.00057534,7]
[340734188,1729749053828,-500.0,0.00057534,120]
[340734189,1729749053838,-4223.57,0.00057534,120]
[340734190,1729749053849,-4223.57,0.00057534,120]
[340734191,1729749053858,-4223.57,0.00057534,120]
[340734192,1729749053867,-559.2732608,0.00057534,120]
[340734193,1729749053876,-511.89127139,0.00057534,120]
[340734194,1729749053885,-4223.57,0.00057534,120]
[340734195,1729749053894,-506.31262019,0.00057534,120]
[340734196,1729749053903,-4223.57,0.00057534,120]
[340734197,1729749053912,-4223.57,0.00057534,120]
[340734198,1729749053922,-502.22571115,0.00057534,120]
[340734199,1729749053931,-4223.57,0.00057534,120]
[340734200,1729749053940,-4223.57,0.00057534,120]
[340734201,1729749053949,-500.0,0.00057534,120]
[340734202,1729749053959,-500.0,0.00057534,120]
[340734203,1729749053971,-500.0,0.00057534,120]
[340734204,1729749053980,-500.0,0.00057534,120]
[340734205,1729749053990,-500.0,0.00057534,120]
[340734206,1729749053999,-510.64085239,0.00057534,120]
[340734207,1729749054010,-516.95842898,0.00057534,120]
[340734208,1729749054019,-523.38676433,0.00057534,120]
[340734209,1729749054029,-500.0,0.00057534,120]
[340734210,1729749054038,-500.0,0.00057534,120]
[340734211,1729749054140,-502.76740837,0.00057534,120]
[340734212,1729749054150,-503.79034222,0.00057534,120]
[340734213,1729749054159,-500.0,0.00057534,120]
[340734214,1729749054168,-500.0,0.00057534,120]
[340734215,1729749054177,-500.0,0.00057534,120]
[340734216,1729749054186,-500.0,0.00057534,120]
[340734217,1729749054197,-500.0,0.00057534,120]
[340734218,1729749054206,-507.54995519,0.00057534,120]
[340734219,1729749054218,-537.98690324,0.00057534,120]
[340734220,1729749054227,-266.39,0.00057534,120]
[340734221,1729749054237,-500.0,0.00057534,120]
[340734222,1729749054247,-500.0,0.00057534,120]
[340734223,1729749054256,-500.0,0.00057534,120]
[340734224,1729749054265,-153.00674866,0.00057534,120]
[340734225,1729749054275,-503.41593024,0.00057534,120]
[340734226,1729749054284,-213.49435158,0.00057534,120]
[340734227,1729749054294,-503.78723971,0.00057534,120]
[340734228,1729749054303,-501.9003681,0.00057534,120]
[340734229,1729749054313,-613.66,0.00057534,120]
[340734230,1729749054322,-613.66,0.00057534,120]
[340734231,1729749054332,-522.3425127,0.00057534,120]
[340734232,1729749054341,-613.66,0.00057534,120]
[340734233,1729749054350,-613.66,0.00057534,120]
[340734234,1729749054359,-613.66,0.00057534,120]
[340734235,1729749054369,-613.66,0.00057534,120]
[340734236,1729749054378,-613.66,0.00057534,120]
[340734237,1729749054388,-500.0,0.00057534,120]
[340734238,1729749054398,-151.07795441,0.00057534,120]
[340734239,1729749054408,-613.66,0.00057534,120]
[340734240,1729749054417,-613.66,0.00057534,120]
[340734241,1729749054427,-502.70873569,0.00057534,120]
[340734242,1729749054436,-581.11658701,0.00057534,120]
[340734243,1729749054445,-500.0,0.00057534,120]
[340734244,1729749054456,-500.0,0.00057534,120]
[340734245,1729749054467,-500.0,0.00057534,120]
[340734246,1729749054476,-500.0,0.00057534,120]
[340734247,1729749054486,-500.0,0.00057534,120]
[340734248,1729749054495,-500.0,0.00057534,120]
[340734249,1729749054505,-502.03306506,0.00057534,120]
[340734250,1729749054515,-612.68,0.00057534,120]
[340734251,1729749054525,-500.0,0.00057534,120]
[340734252,1729749054535,-500.0,0.00057534,120]
[340734253,1729749054544,-509.01290641,0.00057534,120]
[340734254,1729749054554,-500.0,0.00057534,120]
[340734255,1729749054563,-500.0,0.00057534,120]
[340734256,1729749054573,-494.51641251,0.00057534,120]
[340734257,1729749054582,-500.0,0.00057534,120]
[340734258,1729749054592,-500.0,0.00057534,120]
[340734259,1729749054602,-209.54,0.00057534,120]
[340734260,1729749054612,-542.18102211,0.00057534,120]
[340734261,1729749054621,-501.74509218,0.00057534,120]
[340734262,1729749054631,-500.0,0.00057534,120]
[340734263,1729749054640,-500.0,0.00057534,120]
[340734264,1729749054650,-500.0,0.00057534,120]
[340734265,1729749054659,-507.11386566,0.00057534,120]
[340734266,1729749054669,-500.0,0.00057534,120]
[340734267,1729749054679,-1658.3,0.00057534,120]
[340734268,1729749054688,-498.30835359,0.00057534,120]
[340734269,1729749054697,-500.0,0.00057534,120]
[340734270,1729749054706,-1658.3,0.00057534,120]
[340734271,1729749054716,-1658.3,0.00057534,120]
[340734272,1729749054727,-1658.3,0.00057534,120]
[340734273,1729749054737,-1658.3,0.00057534,120]
[340734274,1729749054746,-1658.3,0.00057534,120]
[340734275,1729749054755,-1658.3,0.00057534,120]
[340734276,1729749054764,-1658.3,0.00057534,120]
[340734277,1729749054775,-510.57476248,0.00057534,120]
[340734278,1729749054785,-506.60933766,0.00057534,120]
[340734279,1729749054795,-1021.59,0.00057534,120]
[340734280,1729749054804,-1021.59,0.00057534,120]
[340734281,1729749054814,-1021.59,0.00057534,120]
[340734282,1729749054825,-503.8961306,0.00057534,120]
[340734283,1729749054836,-1021.59,0.00057534,120]
[340734284,1729749054846,-504.33906537,0.00057534,120]
[340734285,1729749054856,-1021.59,0.00057534,120]
[340734286,1729749054865,-579.94702362,0.00057534,120]
[340734287,1729749054874,-481.63192756,0.00057534,120]
[340734288,1729749054883,-500.0,0.00057534,120]
[340734289,1729749054894,-340.03381293,0.00057534,120]
[340734290,1729749054905,-502.88518937,0.00057534,120]
[340734291,1729749054915,-1000.0,0.00057534,120]
[340734292,1729749054925,-501.47082259,0.00057534,120]
[340734293,1729749054933,-504.21581163,0.00057534,120]
[340734294,1729749054942,-1000.0,0.00057534,120]
[340734295,1729749054951,-1000.0,0.00057534,120]
[340734296,1729749054960,-1000.0,0.00057534,120]
[340734297,1729749054972,-1000.0,0.00057534,120]
[340734298,1729749054981,-1000.0,0.00057534,120]
[340734299,1729749054991,-1000.0,0.00057534,120]
[340734300,1729749055000,-502.18934387,0.00057534,120]
[340734301,1729749055009,-569.10753626,0.00057534,120]
[340734302,1729749055018,-506.74324295,0.00057534,120]
[340734303,1729749055027,-500.0,0.00057534,120]
[340734304,1729749055036,-500.0,0.00057534,120]
[340734305,1729749055044,-515.47852201,0.00057534,120]
[340734306,1729749055053,-509.4023866,0.00057534,120]
[340734307,1729749055062,-524.14165012,0.00057534,120]
[340734308,1729749055071,-510.04786441,0.00057534,120]
[340734309,1729749055080,-518.85041789,0.00057534,120]
[340734310,1729749055089,-500.0,0.00057534,120]
[340734311,1729749055098,-500.0,0.00057534,120]
[340734312,1729749055107,-502.39260331,0.00057534,120]
[340734313,1729749055116,-500.0,0.00057534,120]
[340734314,1729749055125,-355.82508788,0.00057534,120]
[340734315,1729749055134,-538.62925041,0.00057534,120]
[340734316,1729749055143,-501.6612993,0.00057534,120]
[340734317,1729749055152,-503.96597825,0.00057534,120]
[340734318,1729749055162,-520.50329452,0.00057534,120]
[340734319,1729749055171,-503.88904868,0.00057534,120]
[340734320,1729749055180,-567.32888469,0.00057534,120]
[340734321,1729749055189,-500.0,0.00057534,120]
[340734322,1729749055198,-503.34766185,0.00057534,120]
[340734323,1729749055207,-508.67287169,0.00057534,120]